Cogmind - Beta 14 @@@ ROGUE MODE // 2025.03.10 @ 10:03:49 Player: mm79 Result: Self-destructed Performance ------------- Evolutions (3) 1500 Regions Visited (9) 1800 Robots Destroyed (80) 400 Value Destroyed (2356) 2356 Prototype IDs (36) 720 Alien Tech Used (0) 0 Bonus (848) 848 TOTAL SCORE: 7624 Bonus ------- High Alert Combat Kills 77 Follower Combat Kills 280 Entered Garrisons 200 Aligned with FarCom 300 Friendly Fire -9 Cogmind --------- Core Integrity 217/700 Matter 179/300 Energy 680/690 System Corruption 9% Temperature Cool (0) Movement Treading (160) Location -7/Garrison Parts ------- > --- POWER (1) -------- Improved Deuterium Engine > --- PROPULSION (3) --- Enhanced Armored Medium Treads Enhanced Armored Medium Treads Enhanced Armored Medium Treads > --- UTILITY (6) ------ Experimental Heat Sink Large Storage Unit Improved Energy Well Structural Scanner Target Analyzer Remote Force Field > --- WEAPON (3) ------- Minigun Minigun Advanced KE Penetrator > --- INVENTORY (15) --- Improved Deuterium Engine Enhanced Armored Medium Treads Enhanced Armored Medium Treads Enhanced Armored Medium Treads Enhanced Armored Medium Treads Improved Heat Sink Improved Cooling System Transmission Jammer Corruption Screen Supersonic Drone Bay (1/1) Minigun Minigun Improved Grenade Launcher Katana Peak State ------------ > --- POWER ------------ Improved Deuterium Engine > --- PROPULSION ------- Enhanced Armored Medium Treads Enhanced Armored Medium Treads Enhanced Armored Medium Treads > --- UTILITY ---------- Experimental Heat Sink Large Storage Unit Improved Energy Well Target Analyzer Transmission Jammer Remote Force Field > --- WEAPON ----------- Minigun Minigun Advanced KE Penetrator > --- INVENTORY -------- Improved Deuterium Engine Enhanced Armored Medium Treads Enhanced Armored Medium Treads Enhanced Armored Medium Treads Enhanced Armored Medium Treads Improved Heat Sink Structural Scanner Corruption Screen Supersonic Drone Bay Minigun Improved Grenade Launcher Katana [Rating: 76] Favorites ----------- Power Reinforced Ion Engine Engine Reinforced Ion Engine Power Core Nuclear Core Propulsion Light Treads Treads Light Treads Wheel Compact Wheel Utility Large Storage Unit Device Structural Scanner Storage Large Storage Unit Processor Target Analyzer Hackware System Shield Protection Hardened Medium Armor Plating Weapon Heavy Assault Rifle Energy Gun Cooled Phase Gun Ballistic Gun Heavy Assault Rifle Launcher Improved Grenade Launcher Slashing Weapon Katana Build | -11 -10 -10 -9 -9 -9 -8 -8 -7 -7 ------- Run | Yrd Mat Min Mat Min Exi Min Mat Fac Gar Slots Evolved 6 | . . . 2 . . . 2 2 . Power . | . . . . . . . . . . Propulsion 1 | . . . . . . . 1 . . Utility 4 | . . . 1 . . . 1 2 . Weapon 1 | . . . 1 . . . . . . Parts Attached 85 | 6 3 1 5 . . 2 21 46 1 Power 6 | . 1 . 1 . . . 1 3 . Engine 4 | . 1 . 1 . . . . 2 . Core 2 | . . . . . . . 1 1 . Reactor . | . . . . . . . . . . Propulsion 13 | 2 . . 1 . . . 4 6 . Treads 11 | 1 . . . . . . 4 6 . Leg . | . . . . . . . . . . Wheel 2 | 1 . . 1 . . . . . . Hover . | . . . . . . . . . . Flight . | . . . . . . . . . . Utility 35 | 2 2 1 2 . . 2 7 19 . Device 21 | 1 . 1 . . . 2 4 13 . Storage 5 | 1 1 . . . . . 1 2 . Processor 1 | . . . . . . . . 1 . Hackware 1 | . . . . . . . . 1 . Protection 7 | . 1 . 2 . . . 2 2 . Artifact . | . . . . . . . . . . Weapon 31 | 2 . . 1 . . . 9 18 1 Energy Gun 2 | . . . . . . . . 2 . Energy Cannon . | . . . . . . . . . . Ballistic Gun 26 | 2 . . 1 . . . 9 13 1 Ballistic Cannon . | . . . . . . . . . . Launcher 1 | . . . . . . . . 1 . Special Weapon . | . . . . . . . . . . Impact Weapon . | . . . . . . . . . . Slashing Weapon 2 | . . . . . . . . 2 . Piercing Weapon . | . . . . . . . . . . Special Melee Weapon . | . . . . . . . . . . Unidentified Prototypes 11 | . . . . . . . . 11 . Parts Lost 27 | . 1 . 1 . . . 4 21 . Power 2 | . . . . . . . . 2 . Propulsion 8 | . . . 1 . . . 1 6 . Utility 10 | . 1 . . . . . 3 6 . Weapon 7 | . . . . . . . . 7 . Highest Loss Streak 18 | . 1 . 1 . . . 1 18 . To Critical Strikes . | . . . . . . . . . . Average Slot Usage (%) 96 | . 96 100 99 100 100 100 99 90 100 Engine 6 | . 10 14 11 11 11 11 4 1 7 Core 2 | . . . . . . . 4 4 . Treads 16 | . 14 14 11 11 11 11 18 21 23 Wheel 8 | . 14 14 10 11 11 11 8 . . Device 15 | . 13 10 11 11 11 11 17 19 23 Storage 10 | . 14 14 11 11 11 11 9 7 15 Protection 6 | . . 3 11 11 11 11 8 4 . Ballistic Gun 26 | . 28 28 33 33 33 33 27 18 15 Peak Build Rating 76 | 6 8 8 11 12 12 19 24 76 74 Average Rating 21 | 3 7 8 10 11 12 13 22 41 69 On Entrance 16 | . 6 8 8 11 12 12 13 24 69 Naked Turns . | . . . . . . . . . . Heaviest Build 56 | 10 30 30 40 40 40 41 53 56 51 Greatest Support 105 | 10 10 10 16 16 16 16 60 105 105 Greatest Overweight (x) 6 | . 2 2 3 2 2 2 3 6 . Average Overweight (x) 1 | . 1 2 2 2 2 2 2 . . Largest Inventory Capacity 15 | 8 15 15 15 15 15 15 15 15 15 Average Capacity 14 | 7 13 15 15 15 15 15 15 15 15 Most Carried 15 | 6 14 13 15 15 15 15 15 15 15 Average Carried 13 | 4 10 13 12 15 14 14 14 13 14 Final Capacity 15 | 8 15 15 15 15 15 15 15 15 15 Final Carried 15 | 5 13 13 15 15 15 15 15 14 14 Class Distribution -------------------- 43% | Tank 28% | Mutant 12% | Scavenger-Tank 8% | Infiltrator-Tank 6% | Skirmisher Dominant Class ---------------- Mutant | -10/Materials Mutant | -10/Mines Tank | -9/Materials Tank | -9/Mines Tank | -9/Exiles Tank | -8/Mines Tank | -8/Materials Infiltrator-Tank | -7/Factory Mutant | -7/Garrison Resources | -11 -10 -10 -9 -9 -9 -8 -8 -7 -7 ----------- Run | Yrd Mat Min Mat Min Exi Min Mat Fac Gar Matter Collected 2552 | 234 77 . 261 155 . . 921 904 . Remotely . | . . . . . . . . . . Salvage Created 2875 | 23 103 . 81 72 . . 1441 1155 . Parts 177 | 2 8 . 12 6 . . 84 65 . Haulers Intercepted 7 | . . . . . . . 5 2 . Recyclers Shooed 2 | . . . . . . . . 2 . Parts Field Recycled . | . . . . . . . . . . Retrieved Matter . | . . . . . . . . . . Parts Self-Destructed . | . . . . . . . . . . Prevented . | . . . . . . . . . . Kills | -11 -10 -10 -9 -9 -9 -8 -8 -7 -7 ------- Run | Yrd Mat Min Mat Min Exi Min Mat Fac Gar Combat Hostiles Destroyed 61 | . 6 . 1 2 . . 31 21 . Melee 2 | . . . . . . . . 2 . Guns 59 | . 6 . 1 2 . . 31 19 . Classes Destroyed 13 | 1 2 . 3 . . . 4 3 . Worker 7 | . . . 1 . . . 3 3 . Builder 2 | . . . . . . . 1 1 . Tunneler 1 | 1 . . . . . . . . . Hauler 7 | . . . . . . . 5 2 . Recycler 1 | . . . . . . . . 1 . Operator 1 | . . . 1 . . . . . . Swarmer 18 | . 5 . . . . . 13 . . Grunt 25 | . 1 . . 2 . . 9 13 . Duelist 1 | . . . . . . . 1 . . Protector 1 | . . . . . . . . 1 . Sentry 9 | . . . 1 . . . 7 1 . Hunter 3 | . . . . . . . 1 2 . Programmer 4 | . . . . . . . . 4 . Best Kill Streak 8 | 1 3 . 1 1 . . 7 8 . Combat Bots Only 7 | . 3 . 1 1 . . 7 5 . Max Kills in Single Turn 2 | 1 1 . 1 1 . . 2 2 . Gunslinging 1 | . . . . . . . 1 . . Exploded . | . . . . . . . . . . Melee 1 | . . . . . . . . 1 . Uniques/NPCs Destroyed . | . . . . . . . . . . Combat | -11 -10 -10 -9 -9 -9 -8 -8 -7 -7 -------- Run | Yrd Mat Min Mat Min Exi Min Mat Fac Gar Hostile Shots Fired 728 | . 45 . 16 1 . . 126 540 . Missed 251 | . 10 . 10 1 . . 30 200 . Damage Taken 5049 | . 285 . 114 . . . 1061 3589 . Core 745 | . 16 . 29 . . . 217 483 . Absorbed by Shields 1130 | . . . . . . . 346 784 . Redirected to Shielding 9 | . 6 . 3 . . . . . . Core Remaining (%) 86 | 100 . 93 . . . 92 60 . . Volleys Fired 172 | 1 19 . 10 3 . . 75 64 . Largest 3 | 2 2 . 3 3 . . 3 3 . Hottest 81 | 40 40 . 60 60 . . 69 81 . Shots Fired 465 | 2 38 . 30 9 . . 225 161 . Gun 461 | 2 38 . 30 9 . . 225 157 . Cannon . | . . . . . . . . . . Launcher 4 | . . . . . . . . 4 . Special . | . . . . . . . . . . Kinetic 460 | 2 38 . 30 9 . . 225 156 . Thermal 1 | . . . . . . . . 1 . Explosive 4 | . . . . . . . . 4 . Electromagnetic . | . . . . . . . . . . Robot Hit Streak 18 | 1 3 . 11 3 . . 12 18 . Robot Miss Streak 5 | . 4 . 5 2 . . 3 3 . Penetration Max 1 | . . . . . . . . 1 . Secondary Targets 18 | . 1 . . 1 . . 9 7 . Max Gunslinging Chain 1 | . 1 . . 1 . . 1 1 . Shots Hit Robots 302 | 1 17 . 20 5 . . 142 117 . Core Hits 159 | 1 7 . 7 3 . . 66 75 . Critical Kills 4 | . . . . . . . 2 2 . Critical Parts Destroyed 2 | . . . . . . . 1 1 . Critical Strikes 6 | . . . . . . . 3 3 . Destroy 6 | . . . . . . . 3 3 . Melee Attacks 5 | . . . . . . . . 5 . Impact . | . . . . . . . . . . Slashing 5 | . . . . . . . . 5 . Piercing . | . . . . . . . . . . Sneak Attacks . | . . . . . . . . . . Combat Hostiles . | . . . . . . . . . . Follow-up Attacks . | . . . . . . . . . . Damage Inflicted 6441 | 15 227 . 263 70 . . 2357 3509 . Guns 4826 | 15 227 . 263 70 . . 2237 2014 . Cannons . | . . . . . . . . . . Explosions 1437 | . . . . . . . 113 1324 . Melee 125 | . . . . . . . . 125 . Ramming 53 | . . . . . . . 7 46 . Kinetic 4826 | 15 227 . 263 70 . . 2237 2014 . Thermal 113 | . . . . . . . 113 . . Explosive 1324 | . . . . . . . . 1324 . Electromagnetic . | . . . . . . . . . . Impact . | . . . . . . . . . . Slashing 125 | . . . . . . . . 125 . Piercing . | . . . . . . . . . . Highest Corruption 9 | . . . . . . . 1 9 9 Average Corruption 3 | . . . . . . . 1 6 9 Corruption Purged . | . . . . . . . . . . Corruption Blocked . | . . . . . . . . . . Effects 46 | . . . . . . . 10 35 1 Message Errors 10 | . . . . . . . 1 8 1 Matter Fused 12 | . . . . . . . 4 8 . Heat Flow Errors 6 | . . . . . . . 1 5 . Energy Discharges 5 | . . . . . . . 1 4 . Data Loss (minor) 6 | . . . . . . . 1 5 . Data Loss (major) 2 | . . . . . . . 2 . . Misfires 2 | . . . . . . . . 2 . Alerts 1 | . . . . . . . . 1 . Weapon Failures 2 | . . . . . . . . 2 . Overload Shots . | . . . . . . . . . . Overflow Damage . | . . . . . . . . . . Projectiles . | . . . . . . . . . . Explosions . | . . . . . . . . . . Melee . | . . . . . . . . . . Knockbacks 1 | . . . . . . . . 1 . Impact 1 | . . . . . . . . 1 . Kinetic . | . . . . . . . . . . Secondary . | . . . . . . . . . . Self-Inflicted Damage 102 | . . . . . . . 102 . . Shots 1 | . . . . . . . 1 . . Rammed 9 | . . . . . . . 3 6 . Targets Rammed 10 | . . . . . . . 3 7 . Kicked . | . . . . . . . . . . Crushed 1 | . . . . . . . . 1 . Highest Temperature 242 | . . . 4 . . . 242 240 . Average Temperature 65 | . . . 4 . . . 56 82 . Received Heat Transfer 1086 | . 18 . 18 . . . 291 759 . Siege Activations . | . . . . . . . . . . Robots Corrupted . | . . . . . . . . . . Combat Hostiles . | . . . . . . . . . . Parts Fried . | . . . . . . . . . . Impact Corruptions . | . . . . . . . . . . Robots Melted . | . . . . . . . . . . Combat Hostiles . | . . . . . . . . . . Parts Melted . | . . . . . . . . . . Heat Transferred 50 | . . . . . . . 50 . . Parts Sabotaged . | . . . . . . . . . . Parts Stolen . | . . . . . . . . . . Parts Stripped . | . . . . . . . . . . Power Chain Reactions . | . . . . . . . . . . Alert | -11 -10 -10 -9 -9 -9 -8 -8 -7 -7 ------- Run | Yrd Mat Min Mat Min Exi Min Mat Fac Gar Peak Influence 589 | 5 110 42 272 254 . . 589 445 221 Initial 238 | . 3 42 16 105 . . . 238 221 Average 195 | 1 27 42 144 151 . . 267 317 221 Maximum Alert Level 2 | . . . 1 1 . . 2 2 1 Low Security (%) 49 | 100 100 100 60 76 . 100 39 . . Level 1 35 | . . . 39 23 . . 31 79 100 Level 2 15 | . . . . . . . 28 20 . Level 3 . | . . . . . . . . . . Level 4 . | . . . . . . . . . . Level 5 . | . . . . . . . . . . High Security . | . . . . . . . . . . Max Security . | . . . . . . . . . . Squads Dispatched 14 | . 2 . 1 . . . 1 10 . Investigation 5 | . 1 . . . . . . 4 . Extermination 2 | . . . . . . . . 2 . Reinforcement 6 | . 1 . 1 . . . 1 3 . Assault . | . . . . . . . . . . Garrison 1 | . . . . . . . . 1 . Intercept . | . . . . . . . . . . Searches Triggered . | . . . . . . . . . . Construction Impeded 2 | . . . . . . . 1 1 . Haulers Reinforced . | . . . . . . . . . . Active Scanning Responses . | . . . . . . . . . . Cargo Convoy Interrupts 1 | . . . . . . . . 1 . Stealth | -11 -10 -10 -9 -9 -9 -8 -8 -7 -7 --------- Run | Yrd Mat Min Mat Min Exi Min Mat Fac Gar Distress Signals 6 | . 1 . . . . . 4 1 . Communications Jammed 7 | . . . . . . . . 7 . Distress Signals 5 | . . . . . . . . 5 . Times Spotted 118 | . 16 . 8 5 . . 48 41 . Peak Tracking Total 15 | . 3 . 2 3 . . 7 15 . Tactical Retreats 10 | . 2 . . . . . 4 4 . Traps | -11 -10 -10 -9 -9 -9 -8 -8 -7 -7 ------- Run | Yrd Mat Min Mat Min Exi Min Mat Fac Gar Traps Triggered 3 | . 1 . 1 . . . 1 . . Indirectly . | . . . . . . . . . . Trap Hack Attempts . | . . . . . . . . . . Triggered . | . . . . . . . . . . Disarmed . | . . . . . . . . . . Reprogrammed . | . . . . . . . . . . Reused . | . . . . . . . . . . Traps Extracted . | . . . . . . . . . . Installed . | . . . . . . . . . . Triggered . | . . . . . . . . . . Machines | -11 -10 -10 -9 -9 -9 -8 -8 -7 -7 ---------- Run | Yrd Mat Min Mat Min Exi Min Mat Fac Gar Machines Disabled 3 | . . . . 1 . . 1 1 . Max in Single Turn 1 | . . . . . . . 1 1 . Machines Repaired . | . . . . . . . . . . Machines Dismantled . | . . . . . . . . . . Machines Sabotaged . | . . . . . . . . . . Overloaded Fab Kills . | . . . . . . . . . . Hacking | -11 -10 -10 -9 -9 -9 -8 -8 -7 -7 --------- Run | Yrd Mat Min Mat Min Exi Min Mat Fac Gar Machines Accessed 27 | . 8 . 2 . 1 . 10 6 . Terminals 21 | . 7 . 2 . . . 9 3 . Fabricators 1 | . . . . . . . . 1 . Repair Stations . | . . . . . . . . . . Recycling Units 2 | . 1 . . . . . 1 . . Scanalyzers . | . . . . . . . . . . Garrison Access 2 | . . . . . . . . 2 . Total Hacks 87 | . 27 . 14 . 1 . 28 17 . Successful 42 | . 17 . 7 . 1 . 13 4 . Failed 45 | . 10 . 7 . . . 15 13 . Catastrophic 9 | . . . 3 . . . 5 1 . Database Lockouts . | . . . . . . . . . . Manual 61 | . 19 . 11 . 1 . 25 5 . Terminals 73 | . 24 . 14 . . . 26 9 . Fabricators 3 | . . . . . . . . 3 . Repair Stations . | . . . . . . . . . . Recycling Units 5 | . 3 . . . . . 2 . . Scanalyzers . | . . . . . . . . . . Garrison Access 5 | . . . . . . . . 5 . Terminal Hacks 13 | . 6 . 3 . 1 . 3 . . Robot Analysis 1 | . 1 . . . . . . . . Prototype ID Bank 1 | . 1 . . . . . . . . Branch Access Points 1 | . . . . . . . 1 . . Terminal Index 3 | . 1 . 1 . . . 1 . . Unreport Threat 1 | . 1 . . . . . . . . Locate Traps 2 | . . . 1 . . . 1 . . Patrol Status 1 | . 1 . . . . . . . . Hauler Manifests 2 | . 1 . 1 . . . . . . Derelict Proto ID Bank 1 | . . . . . 1 . . . . Fabricator Hacks 1 | . . . . . . . . 1 . Network Status 1 | . . . . . . . . 1 . Repair Station Hacks . | . . . . . . . . . . Recycling Unit Hacks 2 | . 1 . . . . . 1 . . Report Inventory 2 | . 1 . . . . . 1 . . Scanalyzer . | . . . . . . . . . . Garrison Access Hacks 1 | . . . . . . . . 1 . Unlock Access 1 | . . . . . . . . 1 . Unauthorized Hacks 25 | . 10 . 4 . . . 9 2 . Terminals 22 | . 8 . 4 . . . 8 2 . Assimilate 1 | . . . . . . . 1 . . Botnet 6 | . 2 . 2 . . . 1 1 . Disrupt 1 | . . . . . . . 1 . . Operators 1 | . 1 . . . . . . . . Skim 13 | . 5 . 2 . . . 5 1 . Fabricators . | . . . . . . . . . . Repair Stations . | . . . . . . . . . . Recycling Units 3 | . 2 . . . . . 1 . . Reject 2 | . 1 . . . . . 1 . . Recyclers 1 | . 1 . . . . . . . . Scanalyzers . | . . . . . . . . . . Garrison Access . | . . . . . . . . . . Data Cores Recovered . | . . . . . . . . . . Used . | . . . . . . . . . . Hacking Detections 22 | . 7 . 2 . . . 8 5 . Full Trace Events 5 | . . . . . . . 1 4 . Feedback Events 1 | . . . . . . . . 1 . Hackware Fried 1 | . . . . . . . . 1 . Feedback Blocked . | . . . . . . . . . . Robot Schematics Acquired . | . . . . . . . . . . Robots Built . | . . . . . . . . . . Authchips . | . . . . . . . . . . Time . | . . . . . . . . . . Total Robot Build Rating . | . . . . . . . . . . Part Schematics Acquired . | . . . . . . . . . . Parts Built . | . . . . . . . . . . Authchips . | . . . . . . . . . . Time . | . . . . . . . . . . Total Part Build Rating . | . . . . . . . . . . Parts Repaired . | . . . . . . . . . . Time . | . . . . . . . . . . Parts Recycled . | . . . . . . . . . . Recycled Matter . | . . . . . . . . . . Retrieved Matter . | . . . . . . . . . . Retrieved Components . | . . . . . . . . . . Parts Scanalyzed . | . . . . . . . . . . Part Schematics Acquired . | . . . . . . . . . . Parts Damaged . | . . . . . . . . . . Bothacking | -11 -10 -10 -9 -9 -9 -8 -8 -7 -7 ------------ Run | Yrd Mat Min Mat Min Exi Min Mat Fac Gar Used RIF Installer . | . . . . . . . . . . Robots Hacked . | . . . . . . . . . . Non-combat . | . . . . . . . . . . Combat . | . . . . . . . . . . Robot Hacks Applied . | . . . . . . . . . . Relay Couplers Released 4 | . . . . . . . . 4 . Programmers 4 | . . . . . . . . 4 . Fabnet Peak Effective % . | . . . . . . . . . . Robots Rewired 1 | . . . . . . . . 1 . Allies Hacked . | . . . . . . . . . . Hacks Repelled . | . . . . . . . . . . Allies | -11 -10 -10 -9 -9 -9 -8 -8 -7 -7 -------- Run | Yrd Mat Min Mat Min Exi Min Mat Fac Gar Total Allies 4 | . . 2 . . . . 1 1 . Largest Group 2 | . . 2 2 2 2 . 1 1 . Highest-Rated Group 52 | . . 52 52 52 52 . 10 21 . Highest-Rated Ally 31 | . . 31 31 31 31 . 10 21 . Total Orders 8 | . . . . . . 2 4 2 . STAY 1 | . . . . . . . 1 . . FOLLOW 1 | . . . . . . . 1 . . EXPLORE 3 | . . . . . . 1 1 1 . RETURN 3 | . . . . . . 1 1 1 . Ally Attacks 34 | . . . 11 10 . . . 13 . Total Damage 574 | . . . 194 149 . . . 231 . Kills 10 | . . . 5 3 . . . 2 . Allies Corrupted . | . . . . . . . . . . Allies Melted . | . . . . . . . . . . Intel | -11 -10 -10 -9 -9 -9 -8 -8 -7 -7 ------- Run | Yrd Mat Min Mat Min Exi Min Mat Fac Gar Robot Analysis Total 1 | . 1 . . . . . . . . Derelict Logs Recovered 2 | . . 1 . 1 . . . . . Drone Launches 3 | . . . . . . 1 1 1 . Drone Recoveries 3 | . . . . . . 1 1 1 . Exploration | -11 -10 -10 -9 -9 -9 -8 -8 -7 -7 ------------- Run | Yrd Mat Min Mat Min Exi Min Mat Fac Gar Turns Passed 6144 | 58 1154 231 348 268 285 280 2007 1481 32 Spaces Moved 3274 | 53 573 187 233 185 219 157 1012 644 11 Core 9 | 8 . . . . . . . 1 . Treads 709 | . . . . . . . 55 643 11 Legs . | . . . . . . . . . . Wheels 2556 | 45 573 187 233 185 219 157 957 . . Hover . | . . . . . . . . . . Flight . | . . . . . . . . . . Fastest Speed 50 | 50 80 110 125 130 130 130 130 160 160 Average Speed 133 | 75 99 110 127 130 130 130 145 160 160 Slowest Speed 350 | 80 110 110 130 130 130 130 240 350 160 Overloaded Moves . | . . . . . . . . . . Propulsion Burnouts . | . . . . . . . . . . Robots Hopped . | . . . . . . . . . . Cave-ins Triggered . | . . . . . . . . . . Exploration Rate (%) 40 | 3 75 46 27 38 42 50 88 34 4 Regions Visited 9 Branch Regions 4 Pre-discovered Areas 2 | . . . . . . . 2 . . Known Exits Taken 6 | . . 1 1 1 . 1 1 1 . Unknown Exits Taken 3 | 1 1 . . . 1 . . . . Scrap Searched 2 | . . . . 2 . . . . . Spaces Dug 1 | . . . . . . . . 1 . Terrain Destroyed 46 | . . . . . . . 31 15 . Melee 1 | . . . . . . . . 1 . Projectile 1 | . . . . . . . . 1 . AOE 44 | . . . . . . . 31 13 . Terrain Rammed . | . . . . . . . . . . Walls Destroyed . | . . . . . . . . . . Machines Disabled . | . . . . . . . . . . Actions | -11 -10 -10 -9 -9 -9 -8 -8 -7 -7 --------- Run | Yrd Mat Min Mat Min Exi Min Mat Fac Gar Total 4705 | 66 1121 211 263 207 220 232 1388 972 25 Wait 1015 | . 515 24 5 18 . 72 231 138 12 Move 3265 | 52 572 186 232 184 218 156 1011 643 11 Hop . | . . . . . . . . . . Pick Up 75 | 7 11 . 7 1 1 1 24 23 . Fast Attach 18 | 4 . . 1 . . . . 13 . Attach 37 | 2 2 . 3 . . . 7 22 1 Detach 5 | . . . . . . . . 4 1 Swap 30 | . 1 1 1 . . 2 14 11 . Drop 45 | . 1 . 4 1 1 1 23 14 . Fire 172 | 1 19 . 10 3 . . 75 64 . Melee 5 | . . . . . . . . 5 . Ram 2 | . . . . . . . 2 . . Kick . | . . . . . . . . . . Crush 8 | . . . . . . . 1 7 . Escape Stasis . | . . . . . . . . . . Rewire 28 | . . . . . . . . 28 . Trap . | . . . . . . . . . . Miscellaneous . | . . . . . . . . . . Route ------- -11/Scrapyard -10/Materials (discovered 5 exits: *Mat x3 / [*Min] / Sub) -10/Mines (discovered 2 exits: *Mat x2) -9/Materials (discovered 5 exits: *Mat x3 / *Min x2) -9/Mines (discovered 4 exits: *Mat x2 / *Exi / [*Zio]) -9/Exiles -8/Mines -8/Materials (discovered 3 exits: *Fac x3) -7/Factory (discovered 3 exits: [*Sto] / [*Low] / Gar) -7/Garrison History --------- Turn | Location | Event 8 | -11/Scrapyard | Discovered new exit (range 15) 59 | -11/Scrapyard | Entered Materials 314 | -10/Materials | Build established: Mutant 612 | -10/Materials | Discovered new exit (range 14) 672 | -10/Materials | Discovered new exit (range 12) 897 | -10/Materials | Discovered new exit (range 3) 927 | -10/Materials | Identified exit to Materials 927 | -10/Materials | Identified exit to Subcaves 927 | -10/Materials | Learned location of 1 exit from Materials 974 | -10/Materials | Learned 4 Recycling zone layouts 1010 | -10/Materials | Learned location of 2 exits from Materials 1037 | -10/Materials | Learned Storage trap positions 1101 | -10/Materials | Learned location of 1 exit from Storage 1213 | -10/Materials | Entered Mines 1237 | -10/Mines | Learned Materials emergency access door positions 1444 | -10/Mines | Entered Materials 1444 | -9/Materials | Accompanied by 2 allies 1444 | -9/Materials | Evolved 2 slots: Utility x1, Weapon x1 1445 | -9/Materials | Identified exit to Materials 1446 | -9/Materials | Identified exit to Mines 1449 | -9/Materials | Led the pair of lost Derelicts to an unsafe place 1718 | -9/Materials | Discovered exit to Mines (range 16) 1739 | -9/Materials | Build established: Tank 1792 | -9/Materials | Entered Mines 1792 | -9/Mines | Accompanied by 2 allies 1823 | -9/Mines | A Derelict revealed a hidden shortcut to a safe place 1851 | -9/Mines | Discovered exit to Materials (range 11) 1883 | -9/Mines | Met a Derelict bent on vengeance 1996 | -9/Mines | Discovered exit to Materials (range 8) 2036 | -9/Mines | Identified exit to Exiles 2039 | -9/Mines | Deemed a non-threat by the Exiles lab entrance 2060 | -9/Mines | Entered Exiles 2060 | -9/Exiles | Accompanied by 2 allies 2090 | -9/Exiles | Led the pair of lost Derelicts to a safe place 2093 | -9/Exiles | Met 8R-AWN 2115 | -9/Exiles | Met EX-HEX 2149 | -9/Exiles | Met EX-BIN 2175 | -9/Exiles | Aligned with FarCom system 2176 | -9/Exiles | Given EX-Vault access code 2206 | -9/Exiles | Opened EX-Vault 2213 | -9/Exiles | Found Supersonic Drone Bay 2243 | -9/Exiles | Warned to stay clear of 0b10 Research branches 2331 | -9/Exiles | Discovered new exit (range 14) 2345 | -9/Exiles | Left Exiles lab with Supersonic Drone Bay 2345 | -9/Exiles | Entered Mines 2411 | -8/Mines | Discovered exit to Materials (range 16) 2625 | -8/Mines | Entered Materials 2625 | -8/Materials | Evolved 2 slots: Propulsion x1, Utility x1 3151 | -8/Materials | Discovered new exit (range 9) 3420 | -8/Materials | Destroyed 7 combat bots 4197 | -8/Materials | Learned location of 1 exit from Extension 4228 | -8/Materials | Learned location of 1 exit from Lower Caves 4247 | -8/Materials | Identified exit to Factory 4256 | -8/Materials | Learned 2 Lower Caves zone layouts 4257 | -8/Materials | Learned Storage trap positions 4259 | -8/Materials | Learned Factory non-interactive machine intel 4267 | -8/Materials | Learned location of Extension (-5) 4538 | -8/Materials | Build established: Scavenger-Tank 4632 | -8/Materials | Entered Factory 4632 | -7/Factory | Evolved 2 slots: Utility x2 4633 | -7/Factory | Loaded intel: 256 non-interactive machine locations 4646 | -7/Factory | Discovered new exit (range 110) 4817 | -7/Factory | Discovered new exit (range 11) 5135 | -7/Factory | Build established: Infiltrator-Tank 5266 | -7/Factory | System Shield fried by hacking feedback 5536 | -7/Factory | Cargo convoy interrupted 5536 | -7/Factory | Garrison activated, responded to threat 5623 | -7/Factory | Core integrity fell below 50% 5636 | -7/Factory | Lost 18 parts (2p5n5u6w) 5786 | -7/Factory | Identified exit to Garrison 6113 | -7/Factory | Entered Garrison 6145 | -7/Garrison | Self-destructed Last Messages --------------- 06022_ System corrupted: Matter fused (-5). 06022_ K-01 Serf cleans the Pressure Siphon. 06037_ System corrupted: Component data lost. 06040_ R-06 Scavenger collects Cld. Phase Gun. 06044_ R-06 Scavenger collects Faulty Prc. Assault Rifle. 06049_ R-06 Scavenger collects Imp. Heavy Laser. 06055_ ALERT: Suspicious intruders detected, dispatching Specialist reinforcements to area. 06057_ Acquired Imp. Cooling System. 06058_ System corrupted: Heat flow error (+102). 06080_ System corrupted: Matter fused (-5). 06096_ U-05 Engineer builds a Wall. 06099_ System corrupted: Heat flow error (+112). LOCATION=GARRISON GOAL=ESCAPE 06113_ Receiving FarCom transmissions... 06118_ :&U B2SBNY#QBQV8G<:|F3QN8MZK